[Event "CZE-ch Youth G16 2022"]
[Site "Luhacovice"]
[Date "2022.03.15"]
[Round "5.4"]
[White "Havelkova, Beata"]
[Black "Sulcova, Tereza Radmila"]
[Result "0-1"]
[ECO "B00"]
[WhiteElo "1666"]
[BlackElo "1555"]
[Annotator "NA"]
[PlyCount "50"]
[EventDate "2022.03.12"]
[EventType "swiss"]
[EventCountry "CZE"]
[SourceTitle "playchess.com"]
[Source "ChessBase"]
[SourceQuality "1"]
[TimeControl "40/5400+30:1800+30"]

1. e4 {[%emt 0:00:03]} b6 {[%emt 0:00:08]} 2. d4 {[%emt 0:00:30]} Bb7 {[%emt 0:00:30]} 3. Nc3 {[%emt 0:00:30]} Nf6 {[%emt 0:00:30]} 4. Bd3 {[%emt 0:00:30]} e6 {[%emt 0:00:30]} 5. Nge2 {[%emt 0:00:30]} Be7 {[%emt 0:00:30]} 6. Be3 {[%emt 0:00:30]} O-O {[%emt 0:00:30]} 7. Nf4 {[%emt 0:00:30]} d6 {[%emt 0:00:30]} 8. e5 {[%emt 0:00:30]} dxe5 {[%emt 0:00:30]} 9. dxe5 {[%emt 0:00:30]} Nfd7 {[%emt 0:00:30]} 10. O-O {[%emt 0:00:30]} g6 {[%emt 0:00:30]} 11. Bc4 {[%emt 0:00:30]} Nxe5 {[%emt 0:00:30]} 12. Bb3 {[%emt 0:00:30]} Qxd1 {[%emt 0:00:30]} 13. Raxd1 {[%emt 0:00:30]} a6 {[%emt 0:00:30]} 14. Rfe1 {[%emt 0:00:30]} c5 {[%emt 0:00:30]} 15. Nxe6 {[%emt 1:16:33]} fxe6 {[%emt 0:29:48]} 16. Bh6 {[%emt 0:01:09]} Nf7 {[%emt 0:03:46]} 17. Rxe6 {[%emt 0:02:29]} Bd8 {[%emt 0:04:34]} 18. Bxf8 {[%emt 0:02:03]} Kxf8 {[%emt 0:00:02]} 19. Rde1 {[%emt 0:02:15]} Nc6 {[%emt 0:03:25]} 20. Bd5 {[%emt 0:01:23]} Rc8 {[%emt 0:00:44]} 21. f4 {[%emt 0:02:35]} b5 {[%emt 0:02:33]} 22. Ne4 {[%emt 0:00:17]} c4 {[%emt 0:00:14]} 23. Nc5 {[%emt 0:00:32]} Bb6 {[%emt 0:00:18]} 24. Rf6 {[%emt 0:01:09]} Bxc5+ {[%emt 0:00:35]} 25. Kf1 {[%emt 0:00:08]} Ncd8 {[%emt 0:01:46]} 0-1

[Event "CZE-ch Youth G16 2022"]
[Site "Luhacovice"]
[Date "2022.03.15"]
[Round "5.6"]
[White "Sargsyan, Anna B."]
[Black "Seda, Michaela"]
[Result "0-1"]
[ECO "C50"]
[WhiteElo "1602"]
[BlackElo "1364"]
[Annotator "NA"]
[PlyCount "50"]
[EventDate "2022.03.12"]
[EventType "swiss"]
[EventCountry "CZE"]
[SourceTitle "playchess.com"]
[Source "ChessBase"]
[SourceQuality "1"]
[TimeControl "40/5400+30:1800+30"]

1. e4 {[%emt 0:00:03]} e5 {[%emt 0:00:09]} 2. Nf3 {[%emt 0:00:08]} Nc6 {[%emt 0:00:07]} 3. Bc4 {[%emt 0:00:13]} Bc5 {[%emt 0:00:40]} 4. Nc3 {[%emt 0:00:45]} Nf6 {[%emt 0:00:08]} 5. d3 {[%emt 0:00:56]} h6 {[%emt 0:01:06]} 6. O-O {[%emt 0:01:14]} d6 {[%emt 0:00:09]} 7. Bd2 {[%emt 0:02:17]} Bg4 {[%emt 0:00:53]} 8. h3 {[%emt 0:06:22]} Bh5 {[%emt 0:00:11]} 9. g4 {[%emt 0:04:40]} Nxg4 {[%emt 0:01:01]} 10. Qe1 {[%emt 0:06:36]} Nf6 {[%emt 0:00:28]} 11. Nh2 {[%emt 0:01:05]} Qd7 {[%emt 0:01:05]} 12. Nd5 {[%emt 0:03:09]} Nxd5 {[%emt 0:00:36]} 13. Bxd5 {[%emt 0:01:14]} Qxh3 {[%emt 0:00:14]} 14. Be3 {[%emt 0:05:53]} Bb6 {[%emt 0:04:28]} 15. Bxb6 {[%emt 0:03:06]} axb6 {[%emt 0:00:07]} 16. Qe3 {[%emt 0:01:21]} Qxe3 {[%emt 0:01:42]} 17. fxe3 {[%emt 0:00:12]} Rf8 {[%emt 0:02:12]} 18. c3 {[%emt 0:01:35]} Be2 {[%emt 0:00:40]} 19. Rf2 {[%emt 0:02:47]} Bxd3 {[%emt 0:04:33]} 20. Rd1 {[%emt 0:00:32]} Ba6 {[%emt 0:00:26]} 21. c4 {[%emt 0:01:34]} Ne7 {[%emt 0:00:51]} 22. b4 {[%emt 0:06:55]} Nxd5 {[%emt 0:02:43]} 23. exd5 {[%emt 0:00:38]} Bxc4 {[%emt 0:00:10]} 24. Ra1 {[%emt 0:02:13]} Bxd5 {[%emt 0:00:12]} 25. Nf3 {[%emt 0:02:55]} Ra3 {[%emt 0:00:23]} 0-1

[Event "CZE-ch Youth G16 2022"]
[Site "Luhacovice"]
[Date "2022.03.15"]
[Round "5.7"]
[White "Mullerova, Karina Nela"]
[Black "Macova, Marketa"]
[Result "1/2-1/2"]
[ECO "C44"]
[WhiteElo "1250"]
[BlackElo "1224"]
[Annotator "NA"]
[PlyCount "72"]
[EventDate "2022.03.12"]
[EventType "swiss"]
[EventCountry "CZE"]
[SourceTitle "playchess.com"]
[Source "ChessBase"]
[SourceQuality "1"]
[TimeControl "40/5400+30:1800+30"]

1. e4 {[%emt 0:00:03]} e5 {[%emt 0:00:06]} 2. Nf3 {[%emt 0:00:03]} Nc6 {[%emt 0:00:10]} 3. d4 {[%emt 0:00:04]} exd4 {[%emt 0:00:09]} 4. Bc4 {[%emt 0:00:29]} Bc5 {[%emt 0:00:39]} 5. Ng5 {[%emt 0:00:10]} Nh6 {[%emt 0:02:08]} 6. Nxf7 {[%emt 0:00:18]} Nxf7 {[%emt 0:00:15]} 7. Bxf7+ {[%emt 0:00:07]} Kxf7 {[%emt 0:02:38]} 8. Qh5+ {[%emt 0:00:08]} Kf8 {[%emt 0:02:48]} 9. Qxc5+ {[%emt 0:00:10]} d6 {[%emt 0:00:27]} 10. Qd5 {[%emt 0:07:10]} Qf6 {[%emt 0:04:47]} 11. Qg5 {[%emt 0:09:43]} Qe5 {[%emt 0:06:07]} 12. f3 {[%emt 0:05:15]} Be6 {[%emt 0:10:50]} 13. Bf4 {[%emt 0:01:49]} Qxg5 {[%emt 0:01:29]} 14. Bxg5 {[%emt 0:00:09]} Nb4 {[%emt 0:01:23]} 15. Na3 {[%emt 0:01:52]} Nxa2 {[%emt 0:02:09]} 16. Rxa2 {[%emt 0:01:13]} Bxa2 {[%emt 0:00:29]} 17. b3 {[%emt 0:00:02]} a5 {[%emt 0:04:24]} 18. Nb5 {[%emt 0:04:11]} d3 {[%emt 0:04:41]} 19. Kd2 {[%emt 0:00:14]} dxc2 {[%emt 0:04:56]} 20. Kxc2 {[%emt 0:00:10]} a4 {[%emt 0:00:40]} 21. bxa4 {[%emt 0:01:32]} Kf7 {[%emt 0:07:26]} 22. Kb2 {[%emt 0:02:03]} Be6 {[%emt 0:09:00]} 23. Ra1 {[%emt 0:01:33]} Rhc8 {[%emt 0:01:33]} 24. f4 {[%emt 0:02:57]} g6 {[%emt 0:03:45]} 25. h3 {[%emt 0:02:17]} d5 {[%emt 0:04:11]} 26. e5 {[%emt 0:01:46]} Bf5 {[%emt 0:03:59]} 27. Kc3 {[%emt 0:01:59]} Ke6 {[%emt 0:00:33]} 28. Nd4+ {[%emt 0:00:35]} Kd7 {[%emt 0:00:38]} 29. g4 {[%emt 0:02:26]} Be4 {[%emt 0:00:59]} 30. f5 {[%emt 0:00:40]} c5 {[%emt 0:02:05]} 31. e6+ {[%emt 0:05:33]} Ke8 {[%emt 0:02:35]} 32. Nb5 {[%emt 0:02:37]} gxf5 {[%emt 0:01:17]} 33. gxf5 {[%emt 0:06:13]} Ra6 {[%emt 0:03:20]} 34. Rf1 {[%emt 0:05:20]} d4+ {[%emt 0:01:47]} 35. Kd2 {[%emt 0:02:32]} Rb6 {[%emt 0:03:36]} 36. e7 {[%emt 0:09:28]} Rxb5 {[%emt 0:03:10]} 1/2-1/2

[Event "CZE-ch Youth G16 2022"]
[Site "Luhacovice"]
[Date "2022.03.16"]
[Round "6.1"]
[White "Markova, Karolina"]
[Black "Voriskova, Anna"]
[Result "0-1"]
[ECO "A27"]
[WhiteElo "1589"]
[BlackElo "1812"]
[Annotator "NA"]
[PlyCount "80"]
[EventDate "2022.03.12"]
[EventType "swiss"]
[EventCountry "CZE"]
[SourceTitle "playchess.com"]
[Source "ChessBase"]
[SourceQuality "1"]
[TimeControl "40/5400+30:1800+30"]

1. c4 {[%emt 0:00:30]} e5 {[%emt 0:00:08]} 2. Nc3 {[%emt 0:00:00]} Nc6 {[%emt 0:00:22]} 3. Nf3 {[%emt 0:00:13]} Bc5 {[%emt 0:01:25]} 4. d3 {[%emt 0:00:39]} a6 {[%emt 0:03:39]} 5. g3 {[%emt 0:00:37]} d6 {[%emt 0:04:29]} 6. Bg2 {[%emt 0:00:28]} Ba7 {[%emt 0:01:27]} 7. O-O {[%emt 0:02:15]} Nge7 {[%emt 0:00:23]} 8. a3 {[%emt 0:06:11]} O-O {[%emt 0:10:18]} 9. b4 {[%emt 0:06:49]} f5 {[%emt 0:02:35]} 10. e3 {[%emt 0:03:53]} Ng6 {[%emt 0:08:36]} 11. Bb2 {[%emt 0:08:48]} (11. Ne2 $14 {was preferrable.}) 11... f4 {[%emt 0:03:18]} 12. d4 {[%emt 0:09:50]} fxe3 {[%emt 0:03:11]} 13. fxe3 {[%emt 0:01:22]} Bg4 {[%emt 0:06:46]} 14. Ne2 {[%emt 0:06:24]} (14. c5 $11) 14... e4 $1 {[%emt 0:10:06]} 15. Ne1 {[%emt 0:02:56]} Rxf1+ {[%emt 0:00:53]} 16. Bxf1 {[%emt 0:04:40]} Qg5 {[%emt 0:07:50]} 17. Ng2 {[%emt 0:06:56]} Rf8 {[%emt 0:06:04]} 18. Qb3 {[%emt 0:06:16]} Qf5 {[%emt 0:03:02]} 19. Nef4 {[%emt 0:01:07]} Nxf4 {[%emt 0:01:32]} 20. gxf4 $17 {[%emt 0:03:54]} Ne7 {[%emt 0:04:37]} 21. Qc2 {[%emt 0:06:36]} Qh5 {[%emt 0:02:02]} 22. Qxe4 {[%emt 0:06:06]} Re8 {[%emt 0:05:17]} 23. Qc2 {[%emt 0:02:57]} Nf5 {[%emt 0:00:20]} 24. Qf2 {[%emt 0:00:54]} Re6 {[%emt 0:01:40]} 25. Re1 {[%emt 0:11:44]} Rh6 {[%emt 0:00:47]} 26. h4 {[%emt 0:00:04]} Bf3 {[%emt 0:04:12]} 27. e4 {[%emt 0:00:34]} Bxg2 {[%emt 0:01:04]} 28. exf5 {[%emt 0:00:22]} Bxf1 {[%emt 0:00:29]} 29. Kxf1 {[%emt 0:00:06]} Qxf5 {[%emt 0:01:40]} 30. Qe3 {[%emt 0:00:42]} Rxh4 {[%emt 0:02:26]} 31. Qe8+ {[%emt 0:00:45]} Qf8 {[%emt 0:00:07]} 32. Qxf8+ {[%emt 0:01:13]} Kxf8 {[%emt 0:00:01]} 33. Kg2 {[%emt 0:00:26]} Rxf4 {[%emt 0:00:30]} 34. c5 {[%emt 0:00:14]} dxc5 {[%emt 0:01:28]} 35. dxc5 {[%emt 0:00:05]} Bb8 {[%emt 0:01:46]} 36. Be5 {[%emt 0:00:31]} Rf7 {[%emt 0:00:44]} 37. Kg3 {[%emt 0:00:46]} Re7 {[%emt 0:00:25]} 38. Rf1+ {[%emt 0:00:05]} Ke8 {[%emt 0:00:51]} 39. Bf4 {[%emt 0:00:17]} h6 {[%emt 0:01:33]} 40. Rd1 {[%emt 0:00:25]} g5 {[%emt 0:00:33]} 0-1

[Event "CZE-ch Youth G16 2022"]
[Site "Luhacovice"]
[Date "2022.03.16"]
[Round "6.2"]
[White "Sulcova, Tereza Radmila"]
[Black "Hosova, Sandra"]
[Result "1/2-1/2"]
[ECO "B24"]
[WhiteElo "1555"]
[BlackElo "1545"]
[Annotator "NA"]
[PlyCount "60"]
[EventDate "2022.03.12"]
[EventType "swiss"]
[EventCountry "CZE"]
[SourceTitle "playchess.com"]
[Source "ChessBase"]
[SourceQuality "1"]
[TimeControl "40/5400+30:1800+30"]

1. e4 {[%emt 0:00:25]} c5 {[%emt 0:00:59]} 2. Nc3 {[%emt 0:00:11]} Nc6 {[%emt 0:00:22]} 3. Bb5 {[%emt 0:00:10]} g6 {[%emt 0:00:48]} 4. Bxc6 {[%emt 0:00:30]} bxc6 {[%emt 0:00:26]} 5. f4 {[%emt 0:00:47]} Bg7 {[%emt 0:01:02]} 6. Nf3 {[%emt 0:00:42]} e6 {[%emt 0:01:19]} 7. O-O {[%emt 0:01:01]} Ne7 {[%emt 0:00:43]} 8. d3 {[%emt 0:00:53]} d5 {[%emt 0:02:51]} 9. Qe1 {[%emt 0:01:55]} O-O {[%emt 0:01:51]} 10. Kh1 {[%emt 0:04:43]} Bd7 {[%emt 0:06:39]} 11. Qh4 {[%emt 0:10:58]} f5 {[%emt 0:03:04]} 12. e5 {[%emt 0:02:16]} Re8 {[%emt 0:05:24]} 13. g4 {[%emt 0:04:10]} fxg4 {[%emt 0:08:36]} 14. Qxg4 {[%emt 0:00:09]} Nf5 {[%emt 0:01:18]} 15. Ne2 {[%emt 0:01:33]} Re7 {[%emt 0:05:31]} 16. Ng3 {[%emt 0:05:11]} Qb6 {[%emt 0:05:03]} 17. Nxf5 {[%emt 0:03:16]} exf5 {[%emt 0:00:53]} 18. Qh4 {[%emt 0:00:11]} Rae8 {[%emt 0:02:34]} 19. Rg1 {[%emt 0:02:17]} d4 {[%emt 0:05:45]} 20. Ng5 {[%emt 0:04:07]} Bf8 {[%emt 0:04:08]} 21. Qg3 {[%emt 0:05:54]} Qb5 {[%emt 0:07:07]} 22. b3 {[%emt 0:03:42]} Qb4 {[%emt 0:06:25]} 23. Qf2 {[%emt 0:03:30]} Rg7 {[%emt 0:04:20]} 24. h4 {[%emt 0:12:21]} h5 {[%emt 0:05:40]} 25. Bd2 {[%emt 0:02:27]} Qb5 {[%emt 0:03:56]} 26. Rae1 {[%emt 0:02:36]} Be6 {[%emt 0:02:01]} 27. Re2 {[%emt 0:04:07]} Qa6 {[%emt 0:02:09]} 28. Nxe6 {[%emt 0:01:53]} Rxe6 {[%emt 0:00:16]} 29. a4 {[%emt 0:00:08]} Be7 {[%emt 0:01:57]} 30. Kh2 {[%emt 0:03:10]} Qb6 {[%emt 0:02:23]} 1/2-1/2

[Event "CZE-ch Youth G16 2022"]
[Site "Luhacovice"]
[Date "2022.03.16"]
[Round "6.3"]
[White "Fizerova, Lucie"]
[Black "Nagyova, Daniela"]
[Result "1/2-1/2"]
[ECO "C63"]
[WhiteElo "1804"]
[BlackElo "1623"]
[Annotator "NA"]
[PlyCount "62"]
[EventDate "2022.03.12"]
[EventType "swiss"]
[EventCountry "CZE"]
[SourceTitle "playchess.com"]
[Source "ChessBase"]
[SourceQuality "1"]
[TimeControl "40/5400+30:1800+30"]

1. e4 {[%emt 0:00:14]} e5 {[%emt 0:00:15]} 2. Nf3 {[%emt 0:00:07]} Nc6 {[%emt 0:00:13]} 3. Bb5 {[%emt 0:00:08]} f5 {[%emt 0:00:15]} 4. d3 {[%emt 0:00:29]} fxe4 {[%emt 0:00:31]} 5. dxe4 {[%emt 0:00:19]} Nf6 {[%emt 0:01:35]} 6. O-O {[%emt 0:00:19]} Bc5 {[%emt 0:00:37]} 7. Qd3 {[%emt 0:00:57]} d6 {[%emt 0:04:31]} 8. Qc4 {[%emt 0:01:00]} Bd7 {[%emt 0:02:11]} 9. Bxc6 {[%emt 0:04:20]} Bxc6 {[%emt 0:02:11]} 10. Nxe5 {[%emt 0:01:34]} Bxf2+ $1 {[%emt 0:01:09]} 11. Rxf2 {[%emt 0:01:13]} dxe5 $11 {[%emt 0:01:05]} 12. Nc3 {[%emt 0:03:14]} Qe7 {[%emt 0:05:53]} 13. Be3 {[%emt 0:08:54]} a6 {[%emt 0:08:57]} 14. Rd1 {[%emt 0:07:34]} Rd8 {[%emt 0:08:44]} 15. Rxd8+ {[%emt 0:02:30]} Kxd8 {[%emt 0:02:23]} 16. Rd2+ {[%emt 0:04:39]} Kc8 {[%emt 0:02:22]} 17. Bc5 {[%emt 0:01:00]} Qe8 {[%emt 0:02:10]} 18. a4 {[%emt 0:07:27]} Kb8 {[%emt 0:04:06]} 19. Nd5 {[%emt 0:10:17]} Nxd5 {[%emt 0:08:02]} 20. exd5 {[%emt 0:00:32]} Bxa4 {[%emt 0:01:11]} 21. d6 {[%emt 0:03:29]} cxd6 {[%emt 0:09:23]} 22. Bxd6+ {[%emt 0:01:30]} Ka8 {[%emt 0:01:10]} 23. Qe4 {[%emt 0:05:53]} Bc6 {[%emt 0:06:47]} 24. Qxe5 {[%emt 0:00:45]} Qg6 {[%emt 0:04:12]} 25. Bc5 {[%emt 0:05:18]} Re8 {[%emt 0:04:28]} 26. Qe7 {[%emt 0:01:17]} Qf6 {[%emt 0:04:09]} 27. Qxf6 {[%emt 0:01:41]} gxf6 {[%emt 0:00:03]} 28. Rd6 {[%emt 0:01:37]} Kb8 {[%emt 0:05:11]} 29. Rxf6 {[%emt 0:02:26]} Re2 {[%emt 0:01:44]} 30. Rf8+ {[%emt 0:07:53]} Kc7 {[%emt 0:00:35]} 31. Rf7+ {[%emt 0:02:11]} Kd8 {[%emt 0:03:41]} 1/2-1/2

[Event "CZE-ch Youth G16 2022"]
[Site "Luhacovice"]
[Date "2022.03.16"]
[Round "6.4"]
[White "Nespora, Tatana"]
[Black "Smajzrova, Dominika"]
[Result "0-1"]
[ECO "B01"]
[WhiteElo "1452"]
[BlackElo "1203"]
[Annotator "NA"]
[PlyCount "52"]
[EventDate "2022.03.12"]
[EventType "swiss"]
[EventCountry "CZE"]
[SourceTitle "playchess.com"]
[Source "ChessBase"]
[SourceQuality "1"]
[TimeControl "40/5400+30:1800+30"]

1. e4 {[%emt 0:00:17]} d5 {[%emt 0:00:36]} 2. exd5 {[%emt 0:01:55]} Nf6 {[%emt 0:00:21]} 3. Nf3 {[%emt 0:06:36]} Nxd5 {[%emt 0:01:20]} 4. d4 {[%emt 0:01:27]} g6 {[%emt 0:00:45]} 5. Be2 {[%emt 0:04:01]} Bg7 {[%emt 0:01:33]} 6. O-O {[%emt 0:00:49]} O-O {[%emt 0:00:20]} 7. c4 {[%emt 0:01:31]} Nb6 {[%emt 0:01:08]} 8. Be3 {[%emt 0:06:56]} Nc6 {[%emt 0:03:18]} 9. Nc3 {[%emt 0:03:19]} Bg4 {[%emt 0:02:17]} 10. d5 {[%emt 0:17:58]} Bxf3 {[%emt 0:04:23]} 11. Bxf3 {[%emt 0:01:35]} Ne5 {[%emt 0:00:51]} 12. c5 {[%emt 0:01:05]} Nxf3+ {[%emt 0:06:31]} 13. Qxf3 {[%emt 0:00:11]} Nc4 {[%emt 0:23:10]} 14. Bf4 {[%emt 0:02:09]} c6 {[%emt 0:14:49]} 15. b3 {[%emt 0:02:47]} Ne5 {[%emt 0:06:34]} 16. Qg3 {[%emt 0:04:08]} f6 {[%emt 0:06:11]} 17. d6 {[%emt 0:01:08]} exd6 {[%emt 0:01:50]} 18. cxd6 {[%emt 0:00:45]} Qxd6 {[%emt 0:00:57]} 19. Rfd1 {[%emt 0:02:05]} Qb4 {[%emt 0:02:41]} 20. Rac1 {[%emt 0:01:32]} Rad8 {[%emt 0:01:31]} 21. Rxd8 {[%emt 0:16:15]} Rxd8 {[%emt 0:00:57]} 22. Qe3 {[%emt 0:03:28]} Rd3 {[%emt 0:02:52]} 23. Qe1 {[%emt 0:08:00]} Qxf4 {[%emt 0:01:45]} 24. Ne4 {[%emt 0:04:48]} Qg4 {[%emt 0:05:48]} 25. Ng3 {[%emt 0:03:10]} Bh6 {[%emt 0:01:58]} 26. Rc2 {[%emt 0:01:47]} Rd1 {[%emt 0:00:57]} 0-1

[Event "CZE-ch Youth G16 2022"]
[Site "Luhacovice"]
[Date "2022.03.16"]
[Round "6.5"]
[White "Seda, Michaela"]
[Black "Sehnoutkova, Laura"]
[Result "1-0"]
[ECO "B72"]
[WhiteElo "1364"]
[BlackElo "1126"]
[Annotator "NA"]
[PlyCount "79"]
[EventDate "2022.03.12"]
[EventType "swiss"]
[EventCountry "CZE"]
[SourceTitle "playchess.com"]
[Source "ChessBase"]
[SourceQuality "1"]
[TimeControl "40/5400+30:1800+30"]

1. e4 {[%emt 0:00:03]} c5 {[%emt 0:00:11]} 2. Nf3 {[%emt 0:00:04]} Nc6 {[%emt 0:00:10]} 3. d4 {[%emt 0:00:05]} cxd4 4. Nxd4 {[%emt 0:00:05]} g6 {[%emt 0:00:42]} 5. Nc3 {[%emt 0:00:05]} Bg7 {[%emt 0:00:10]} 6. Be3 {[%emt 0:00:06]} Nf6 {[%emt 0:00:34]} 7. Be2 {[%emt 0:00:15]} d6 {[%emt 0:00:55]} 8. Qd2 {[%emt 0:00:24]} Ng4 {[%emt 0:03:21]} 9. Bxg4 {[%emt 0:01:06]} Bxg4 {[%emt 0:00:07]} 10. O-O {[%emt 0:00:51]} O-O {[%emt 0:02:25]} 11. Nxc6 {[%emt 0:00:20]} bxc6 {[%emt 0:00:10]} 12. Bh6 {[%emt 0:00:07]} Qc7 {[%emt 0:02:53]} 13. Bxg7 {[%emt 0:00:56]} Kxg7 {[%emt 0:00:12]} 14. h3 {[%emt 0:05:24]} Bd7 {[%emt 0:01:00]} 15. Rfd1 {[%emt 0:02:29]} Rad8 {[%emt 0:05:29]} 16. f4 {[%emt 0:02:37]} Bc8 {[%emt 0:03:53]} 17. Kh1 {[%emt 0:04:39]} e6 {[%emt 0:04:00]} 18. Qd4+ {[%emt 0:06:48]} Kg8 {[%emt 0:06:46]} 19. Qf6 {[%emt 0:01:55]} Rfe8 {[%emt 0:02:21]} 20. e5 {[%emt 0:08:04]} d5 {[%emt 0:08:04]} 21. Rd2 {[%emt 0:00:49]} Ba6 {[%emt 0:05:24]} 22. Rad1 {[%emt 0:01:08]} Qe7 {[%emt 0:02:11]} 23. Ne4 {[%emt 0:05:21]} Rb8 {[%emt 0:04:34]} 24. Qxe7 {[%emt 0:02:39]} Rxe7 {[%emt 0:00:09]} 25. Nf6+ {[%emt 0:02:40]} Kg7 {[%emt 0:02:38]} 26. b3 {[%emt 0:00:50]} h6 {[%emt 0:08:41]} 27. c4 {[%emt 0:06:19]} h5 {[%emt 0:09:08]} 28. h4 {[%emt 0:01:46]} Reb7 {[%emt 0:04:45]} 29. Rc2 {[%emt 0:10:39]} Rd8 {[%emt 0:07:16]} 30. Ne4 {[%emt 0:06:26]} Rbb8 {[%emt 0:03:42]} 31. Rcd2 {[%emt 0:03:07]} Kf8 {[%emt 0:01:45]} 32. Nd6 {[%emt 0:01:55]} Ke7 {[%emt 0:02:36]} 33. Rc2 {[%emt 0:04:44]} f6 {[%emt 0:04:54]} 34. Rdd2 {[%emt 0:01:57]} fxe5 {[%emt 0:01:16]} 35. fxe5 {[%emt 0:00:05]} Rd7 {[%emt 0:02:06]} 36. Rf2 {[%emt 0:03:09]} Rf8 {[%emt 0:01:47]} 37. Rxf8 {[%emt 0:00:25]} Kxf8 {[%emt 0:00:06]} 38. Rf2+ {[%emt 0:00:20]} Ke7 {[%emt 0:00:21]} 39. Rf3 {[%emt 0:02:34]} Rd8 {[%emt 0:00:58]} 40. Rf7# {[%emt 0:00:08]} 1-0

[Event "CZE-ch Youth G16 2022"]
[Site "Luhacovice"]
[Date "2022.03.16"]
[Round "6.8"]
[White "Macova, Marketa"]
[Black "Sargsyan, Anna B."]
[Result "1-0"]
[ECO "C31"]
[WhiteElo "1224"]
[BlackElo "1602"]
[Annotator "NA"]
[PlyCount "49"]
[EventDate "2022.03.12"]
[EventType "swiss"]
[EventCountry "CZE"]
[SourceTitle "playchess.com"]
[Source "ChessBase"]
[SourceQuality "1"]
[TimeControl "40/5400+30:1800+30"]

1. e4 {[%emt 0:00:02]} e5 {[%emt 0:00:17]} 2. f4 {[%emt 0:00:39]} d5 {[%emt 0:05:50]} 3. exd5 {[%emt 0:03:49]} exf4 {[%emt 0:01:18]} 4. Nf3 {[%emt 0:03:22]} Bg4 {[%emt 0:03:46]} 5. d3 {[%emt 0:07:09]} Bxf3 {[%emt 0:02:15]} 6. Qxf3 {[%emt 0:01:37]} Qh4+ {[%emt 0:02:30]} 7. Kd1 {[%emt 0:04:28]} Bd6 {[%emt 0:01:52]} 8. Nc3 {[%emt 0:03:16]} Nf6 {[%emt 0:02:40]} 9. Be2 {[%emt 0:04:00]} O-O {[%emt 0:01:50]} 10. h3 {[%emt 0:03:25]} Nh5 {[%emt 0:03:55]} 11. Qxh5 {[%emt 0:01:32]} Qxh5 {[%emt 0:02:58]} 12. Bxh5 {[%emt 0:00:13]} Re8 {[%emt 0:00:56]} 13. Re1 {[%emt 0:02:47]} Nd7 {[%emt 0:00:30]} 14. Nb5 {[%emt 0:04:01]} Nf6 {[%emt 0:05:18]} 15. Bf3 {[%emt 0:02:13]} Rxe1+ {[%emt 0:03:41]} 16. Kxe1 {[%emt 0:00:14]} Re8+ {[%emt 0:01:10]} 17. Kf1 {[%emt 0:01:35]} a6 {[%emt 0:04:09]} 18. Nxd6 {[%emt 0:00:22]} cxd6 {[%emt 0:00:23]} 19. Bxf4 {[%emt 0:00:23]} g6 {[%emt 0:04:37]} 20. Bxd6 {[%emt 0:00:51]} Nh5 {[%emt 0:00:59]} 21. Bxh5 {[%emt 0:01:12]} gxh5 {[%emt 0:00:18]} 22. Re1 {[%emt 0:00:23]} Rxe1+ {[%emt 0:01:30]} 23. Kxe1 {[%emt 0:00:07]} Kg7 {[%emt 0:00:53]} 24. Ke2 {[%emt 0:00:19]} Kg6 {[%emt 0:00:25]} 25. Bf4 {[%emt 0:00:52]} 1-0

[Event "CZE-ch Youth G16 2022"]
[Site "Luhacovice"]
[Date "2022.03.17"]
[Round "7.1"]
[White "Voriskova, Anna"]
[Black "Fizerova, Lucie"]
[Result "1-0"]
[ECO "D27"]
[WhiteElo "1812"]
[BlackElo "1804"]
[Annotator "NA"]
[PlyCount "75"]
[EventDate "2022.03.12"]
[EventType "swiss"]
[EventCountry "CZE"]
[SourceTitle "playchess.com"]
[Source "ChessBase"]
[SourceQuality "1"]
[TimeControl "40/5400+30:1800+30"]

1. d4 {[%emt 0:00:03]} d5 {[%emt 0:00:20]} 2. c4 {[%emt 0:00:24]} dxc4 {[%emt 0:00:15]} 3. e3 {[%emt 0:02:15]} Nf6 {[%emt 0:01:08]} 4. Bxc4 {[%emt 0:02:46]} e6 {[%emt 0:00:35]} 5. Nf3 {[%emt 0:00:46]} c5 {[%emt 0:00:41]} 6. O-O {[%emt 0:01:15]} a6 {[%emt 0:00:33]} 7. Bb3 {[%emt 0:06:44]} b5 {[%emt 0:03:25]} 8. dxc5 {[%emt 0:01:19]} Qxd1 {[%emt 0:01:47]} 9. Rxd1 {[%emt 0:00:01]} Bxc5 {[%emt 0:00:13]} 10. Bd2 {[%emt 0:09:08]} Bb7 {[%emt 0:01:59]} 11. Be1 {[%emt 0:00:36]} Nbd7 {[%emt 0:02:38]} 12. a4 {[%emt 0:04:24]} O-O {[%emt 0:02:09]} 13. axb5 {[%emt 0:06:28]} axb5 {[%emt 0:01:29]} 14. Nc3 {[%emt 0:00:15]} Rab8 {[%emt 0:04:07]} 15. Nd4 {[%emt 0:03:14]} b4 {[%emt 0:08:30]} 16. Nce2 {[%emt 0:00:59]} Rfc8 {[%emt 0:02:32]} 17. Nxe6 {[%emt 0:07:32]} Be4 {[%emt 0:09:37]} 18. Ng5 {[%emt 0:07:02]} Bg6 {[%emt 0:02:15]} 19. Nf4 {[%emt 0:05:47]} h6 {[%emt 0:06:50]} 20. Nf3 {[%emt 0:05:17]} Bh7 {[%emt 0:03:57]} 21. h3 {[%emt 0:02:45]} g5 {[%emt 0:13:56]} 22. Nd5 {[%emt 0:05:21]} Nxd5 {[%emt 0:01:32]} 23. Rxd5 {[%emt 0:00:20]} Nf6 {[%emt 0:00:29]} 24. Rdd1 {[%emt 0:01:22]} Re8 {[%emt 0:04:14]} 25. Ra6 {[%emt 0:04:30]} Kg7 {[%emt 0:04:42]} 26. Rc6 {[%emt 0:02:43]} Bf8 {[%emt 0:04:36]} 27. Rc7 {[%emt 0:01:39]} Bg6 {[%emt 0:02:46]} 28. Nd4 {[%emt 0:06:16]} Bd6 {[%emt 0:04:22]} 29. Nf5+ {[%emt 0:01:18]} Bxf5 {[%emt 0:04:48]} 30. Rxf7+ {[%emt 0:04:20]} Kg6 {[%emt 0:00:53]} 31. Rxd6 {[%emt 0:00:22]} Be6 {[%emt 0:00:49]} 32. Bxe6 {[%emt 0:00:41]} Rxe6 {[%emt 0:00:06]} 33. Rxe6 {[%emt 0:00:07]} Kxf7 {[%emt 0:00:03]} 34. Rc6 {[%emt 0:00:38]} Ke7 {[%emt 0:02:04]} 35. Rc4 {[%emt 0:00:22]} b3 {[%emt 0:00:35]} 36. Bc3 {[%emt 0:00:25]} Nd5 {[%emt 0:00:45]} 37. e4 {[%emt 0:01:21]} Nxc3 {[%emt 0:01:01]} 38. Rxc3 {[%emt 0:00:02]} 1-0